fUST/lending_fUST_20240911
["ID","MTS","AMOUNT","RATE_DAILY","PERIOD"]
[337760357,1726063861560,-585.51,0.00025479,2]
[337760358,1726063861570,-850.43,0.00025479,2]
[337760359,1726063861579,-500.0,0.00025479,2]
[337760360,1726063861591,-500.0,0.00025479,2]
[337760361,1726063861601,-1534.13,0.00025479,2]
[337760362,1726063861610,-500.0,0.00025479,2]
[337760363,1726063861619,-500.0,0.00025479,2]
[337760364,1726063861629,-691.64,0.00025479,2]
[337760365,1726063861639,-209.62760982,0.00025479,2]
[337760366,1726063861648,-241.73087374,0.00025479,2]
[337760367,1726063861658,-500.0,0.00025479,2]
[337760368,1726063861667,-675.96,0.00025479,2]
[337760369,1726063861677,-500.0,0.00025479,2]
[337760370,1726063861689,-501.4596973,0.00025479,2]
[337760371,1726063861699,-821.98,0.00025479,2]
[337760372,1726063861710,-500.0,0.00025479,2]
[337760373,1726063861722,-810.48,0.00025479,2]
[337760374,1726063861734,-500.0,0.00025479,2]
[337760375,1726063861744,-500.0,0.00025479,2]
[337760376,1726063861755,-500.0,0.00025479,2]
[337760377,1726063861765,-500.0,0.00025479,2]
[337760378,1726063861775,-557.51,0.00025479,2]
[337760379,1726063861784,-689.22,0.00025479,2]
[337760380,1726063861793,-500.0,0.00025479,2]
[337760381,1726063861814,-2141.59,0.00025479,2]
[337760382,1726063861824,-500.0,0.00025479,2]
[337760383,1726063861833,-500.0,0.00025479,2]
[337760384,1726063861844,-987.4,0.00025479,2]
[337760385,1726063861854,-500.0,0.00025479,2]
[337760386,1726063861863,-572.81737304,0.00025479,2]
[337760387,1726063861873,-624.43,0.00025479,2]
[337760388,1726063861882,-1670.63,0.00025479,2]
[337760389,1726063861892,-500.0,0.00025479,2]
[337760390,1726063861901,-500.0,0.00025479,2]
[337760391,1726063861911,-500.0,0.00025479,2]
[337760392,1726063861920,-500.0,0.00025479,2]
[337760393,1726063861931,-504.04043123,0.00025479,2]
[337760394,1726063861941,-500.0,0.00025479,2]
[337760395,1726063861950,-1003.25,0.00025479,2]
[337760396,1726063861960,-501.85547073,0.00025479,2]
[337760397,1726063861969,-500.0,0.00025479,2]
[337760398,1726063861979,-500.0,0.00025479,2]
[337760399,1726063861988,-1236.54,0.00025479,2]
[337760400,1726063861998,-3509.29,0.00025479,2]
[337760401,1726063862007,-500.0,0.00025479,2]
[337760402,1726063862016,-500.0,0.00025479,2]
[337760403,1726063862025,-500.0,0.00025479,2]
[337760404,1726063862034,-717.7,0.00025479,2]
[337760405,1726063862044,-1636.91,0.00025479,2]
[337760406,1726063862054,-674.16,0.00025479,2]
[337760407,1726063862064,-1238.66,0.00025479,2]
[337760408,1726063862075,-500.0,0.00025479,2]
[337760409,1726063862087,-500.0,0.00025479,2]
[337760410,1726063862096,-500.0,0.00025479,2]
[337760411,1726063862106,-1813.99,0.00025479,2]
[337760412,1726063862115,-500.0,0.00025479,2]
[337760413,1726063862125,-1028.95,0.00025479,2]
[337760414,1726063862134,-500.0,0.00025479,2]
[337760415,1726063862143,-500.0,0.00025479,2]
[337760416,1726063862154,-500.0,0.00025479,2]
[337760417,1726063862164,-559.39994659,0.00025479,2]
[337760418,1726063862174,-986.29,0.00025479,2]
[337760419,1726063862186,-500.0,0.00025479,2]
[337760420,1726063862197,-500.0,0.00025479,2]
[337760421,1726063862207,-750.4,0.00025479,2]
[337760422,1726063862217,-1800.69,0.00025479,2]
[337760423,1726063862227,-500.0,0.00025479,2]
[337760424,1726063862238,-500.0,0.00025479,2]
[337760425,1726063862248,-500.0,0.00025479,2]
[337760426,1726063862257,-7421.3,0.00025479,2]
[337760427,1726063862267,-500.0,0.00025479,2]
[337760428,1726063862276,-500.15,0.00025479,2]
[337760429,1726063862286,-500.0,0.00025479,2]
[337760430,1726063862297,-519.06,0.00025479,2]
[337760431,1726063862308,-500.0,0.00025479,2]
[337760432,1726063862318,-1344.61,0.00025479,2]
[337760433,1726063862327,-500.0,0.00025479,2]
[337760434,1726063862338,-504.50238451,0.00025479,2]
[337760435,1726063862348,-500.0,0.00025479,2]
[337760436,1726063862357,-500.0,0.00025479,2]
[337760437,1726063862366,-500.0,0.00025479,2]
[337760438,1726063862376,-500.0,0.00025479,2]
[337760439,1726063862385,-500.0,0.00025479,2]
[337760440,1726063862395,-500.0,0.00025479,2]
[337760441,1726063862404,-912.8,0.00025479,2]
[337760442,1726063862414,-500.0,0.00025479,2]
[337760443,1726063862424,-500.0,0.00025479,2]
[337760444,1726063862433,-2000.52,0.00025479,2]
[337760445,1726063862443,-500.0,0.00025479,2]
[337760446,1726063862452,-2189.64,0.00025479,2]
[337760447,1726063862461,-500.0,0.00025479,2]
[337760448,1726063862470,-700.94,0.00025479,2]
[337760449,1726063862480,-814.81,0.00025479,2]
[337760450,1726063862490,-2096.87,0.00025479,2]
[337760451,1726063862499,-500.0,0.00025479,2]
[337760452,1726063862509,-500.0,0.00025479,2]
[337760453,1726063862519,-4760.33,0.00025479,2]
[337760454,1726063862529,-500.0,0.00025479,2]
[337760455,1726063862538,-500.0,0.00025479,2]
[337760456,1726063862547,-500.0,0.00025479,2]
[337760457,1726063862558,-503.47028523,0.00025479,2]
[337760458,1726063862568,-11449.58,0.00025479,2]
[337760459,1726063862577,-1185.01,0.00025479,2]
[337760460,1726063862588,-853.59,0.00025479,2]
[337760461,1726063862599,-988.1,0.00025479,2]
[337760462,1726063862608,-400.03364197,0.00025479,2]
[337760463,1726063862617,-500.0,0.00025479,2]
[337760464,1726063862627,-3117.26,0.00025479,2]
[337760465,1726063862636,-500.0,0.00025479,2]
[337760466,1726063862646,-509.99,0.00025479,2]
[337760467,1726063862655,-1598.26,0.00025479,2]
[337760468,1726063862665,-500.0,0.00025479,2]
[337760469,1726063862675,-500.0,0.00025479,2]
[337760470,1726063862685,-500.0,0.00025479,2]
[337760471,1726063862695,-2173.17,0.00025479,2]
[337760472,1726063862705,-500.0,0.00025479,2]
[337760473,1726063862715,-28094.41,0.00025479,2]
[337760474,1726063862731,-3483.32,0.00025479,2]
[337760475,1726063862741,-1859.91,0.00025479,2]
[337760476,1726063862751,-500.0,0.00025479,2]
[337760477,1726063862762,-500.0,0.00025479,2]
[337760478,1726063862772,-1638.26,0.00025479,2]
[337760479,1726063862784,-576.41823696,0.00025479,2]
[337760480,1726063862793,-651.52,0.00025479,2]
[337760481,1726063862805,-1120.54,0.00025479,2]
[337760482,1726063862815,-1782.32,0.00025479,2]
[337760483,1726063862825,-500.0,0.00025479,2]
[337760484,1726063862834,-1809.17,0.00025479,2]
[337760485,1726063862846,-500.0,0.00025479,2]
[337760486,1726063862856,-566.34137476,0.00025479,2]
[337760487,1726063862865,-500.0,0.00025479,2]
[337760488,1726063862874,-1123.16,0.00025479,2]
[337760489,1726063862884,-500.0,0.00025479,2]
[337760490,1726063862893,-654.13,0.00025479,2]
[337760491,1726063862903,-500.0,0.00025479,2]
[337760492,1726063862913,-500.0,0.00025479,2]
[337760493,1726063862923,-1066.46,0.00025479,2]
[337760494,1726063862932,-895.03,0.00025479,2]
[337760495,1726063862942,-959.84,0.00025479,2]
[337760496,1726063862951,-643.59,0.00025479,2]
[337760497,1726063862960,-500.0,0.00025479,2]
[337760498,1726063862969,-500.0,0.00025479,2]
[337760499,1726063862979,-500.0,0.00025479,2]
[337760500,1726063862989,-2503.58,0.00025479,2]
[337760501,1726063863000,-644.16,0.00025479,2]
[337760502,1726063863009,-1282.23,0.00025479,2]
[337760503,1726063863018,-500.0,0.00025479,2]
[337760504,1726063863028,-1332.43,0.00025479,2]
[337760505,1726063863038,-500.0,0.00025479,2]
[337760506,1726063863047,-500.0,0.00025479,2]
[337760507,1726063863057,-500.0,0.00025479,2]
[337760508,1726063863066,-1103.77,0.00025479,2]
[337760509,1726063863075,-500.0,0.00025479,2]
[337760510,1726063863085,-3122.02,0.00025479,2]
[337760511,1726063863096,-500.0,0.00025479,2]
[337760512,1726063863106,-1173.92,0.00025479,2]
[337760513,1726063863116,-773.55,0.00025479,2]
[337760514,1726063863126,-701.55,0.00025479,2]
[337760515,1726063863135,-500.0,0.00025479,2]
[337760516,1726063863145,-1309.65,0.00025479,2]
[337760517,1726063863154,-708.26,0.00025479,2]
[337760518,1726063863164,-1146.34,0.00025479,2]
[337760519,1726063863173,-508.66,0.00025479,2]
[337760520,1726063863183,-1579.36,0.00025479,2]
[337760521,1726063863378,-862.8,0.00025479,2]
[337760522,1726063863389,-233.018273,0.00025479,7]
[337760523,1726063863399,-233.018273,0.00025479,7]
[337760524,1726063863409,-233.018273,0.00025479,7]
[337760525,1726063863419,-233.018273,0.00025479,7]
[337760526,1726063863429,-500.0,0.00025479,2]
[337760527,1726063863438,-1640.08,0.00025479,2]
[337760528,1726063863447,-585.0709857,0.00025479,2]
[337760529,1726063863457,-1774.09,0.00025479,2]
[337760530,1726063863466,-546.08,0.00025479,2]
[337760531,1726063863475,-500.0,0.00025479,2]
[337760532,1726063863484,-500.0,0.00025479,2]
[337760533,1726063863494,-500.0,0.00025479,2]
[337760534,1726063863504,-3207.87,0.00025479,2]
[337760535,1726063863515,-615.73,0.00025479,2]
[337760536,1726063863524,-815.04,0.00025479,2]
[337760537,1726063863534,-1463.31,0.00025479,2]
[337760538,1726063863543,-500.0,0.00025479,2]
[337760539,1726063863553,-500.0,0.00025479,2]
[337760540,1726063863566,-842.22,0.00025479,2]
[337760541,1726063863575,-730.21,0.00025479,2]
[337760542,1726063863585,-642.55,0.00025479,2]
[337760543,1726063863596,-1322.78,0.00025479,2]
[337760544,1726063863605,-1172.96,0.00025479,2]
[337760545,1726063863616,-500.0,0.00025479,2]
[337760546,1726063863625,-536.13,0.00025479,2]
[337760547,1726063863635,-1394.64,0.00025479,2]
[337760548,1726063863645,-2486.38,0.00025479,2]
[337760549,1726063863655,-600.09138174,0.00025479,2]
[337760550,1726063863664,-500.0,0.00025479,2]
[337760551,1726063863673,-500.0,0.00025479,2]
[337760552,1726063863683,-509.83,0.00025479,2]
[337760553,1726063863692,-743.56,0.00025479,2]
[337760554,1726063863701,-500.0,0.00025479,2]
[337760555,1726063863712,-500.0,0.00025479,2]
[337760556,1726063863722,-500.0,0.00025479,2]
[337760557,1726063863731,-1911.91,0.00025479,2]
[337760558,1726063863741,-2085.48,0.00025479,2]
[337760559,1726063863750,-500.0,0.00025479,2]
[337760560,1726063863759,-690.29,0.00025479,2]
[337760561,1726063863769,-540.54,0.00025479,2]
[337760562,1726063863779,-483.8049981,0.00025479,2]
[337760563,1726063863788,-153.0,0.00025479,2]
[337760564,1726063863798,-166.755208,0.00025481,2]
[337760565,1726063863808,-500.0,0.00025753,2]
[337760566,1726063863817,-500.0,0.00025753,2]
[337760567,1726063863827,-500.0,0.00025753,2]
[337760568,1726063863838,-500.0,0.00025753,2]
[337760569,1726063863848,-500.0,0.00025753,2]
[337760570,1726063863857,-2106.76,0.00025753,2]
[337760571,1726063863866,-550.57,0.00025753,2]
[337760572,1726063863876,-500.0,0.00025753,2]
[337760573,1726063863886,-1599.94,0.00025753,2]
[337760574,1726063863895,-500.0,0.00025753,2]
[337760575,1726063863905,-500.0,0.00025753,2]
[337760576,1726063863915,-500.0,0.00025753,2]
[337760577,1726063863924,-500.0,0.00025753,2]
[337760578,1726063863934,-1062.52,0.00025753,2]
[337760579,1726063863944,-1560.32,0.00025753,2]
[337760580,1726063863953,-500.0,0.00025753,2]
[337760581,1726063863963,-493.19412808,0.00025753,2]
[337760582,1726063863972,-500.0,0.00025753,2]
[337760583,1726063863982,-500.0,0.00025753,2]
[337760584,1726063863991,-153.26443724,0.00025753,2]
[337760585,1726063864002,-500.0,0.00025753,2]
[337760586,1726063864011,-500.0,0.00025753,2]
[337760587,1726063864020,-504.54,0.00025753,2]
[337760588,1726063864030,-500.0,0.00025753,2]
[337760589,1726063864039,-500.0,0.00025753,2]
[337760590,1726063864049,-508.03879892,0.00025753,2]
[337760591,1726063864058,-500.0,0.00025753,2]
[337760592,1726063864068,-500.0,0.00025753,2]
[337760593,1726063864078,-500.0,0.00025753,2]
[337760594,1726063864088,-1503.42,0.00025753,2]
[337760595,1726063864098,-500.0,0.00025753,2]
[337760596,1726063864107,-503.73145623,0.00025753,2]
[337760597,1726063864117,-500.0,0.00025753,2]
[337760598,1726063864126,-500.0,0.00025753,2]
[337760599,1726063864135,-500.0,0.00025753,2]
[337760600,1726063864145,-512.55,0.00025753,2]
[337760601,1726063864154,-538.10241503,0.00025753,2]
[337760602,1726063864164,-500.0,0.00025753,2]
[337760603,1726063864173,-500.0,0.00025753,2]
[337760604,1726063864183,-500.0,0.00025753,2]
[337760605,1726063864192,-500.0,0.00025753,2]
[337760606,1726063864202,-611.40989738,0.00025753,2]
[337760607,1726063864211,-500.0,0.00025753,2]
[337760608,1726063864221,-500.0,0.00025753,2]
[337760609,1726063864230,-500.0,0.00025753,2]
[337760610,1726063864240,-500.0,0.00025753,2]
[337760611,1726063864249,-500.0,0.00025753,2]
[337760612,1726063864259,-503.62,0.00025753,2]
[337760613,1726063864269,-500.0,0.00025753,2]
[337760614,1726063864279,-500.0,0.00025753,2]
[337760615,1726063864289,-500.0,0.00025753,2]
[337760616,1726063864299,-500.0,0.00025753,2]
[337760617,1726063864309,-847.03,0.00025753,2]
[337760618,1726063864318,-500.0,0.00025753,2]
[337760619,1726063864327,-522.19,0.00025753,2]
[337760620,1726063864339,-500.0,0.00025753,2]
[337760621,1726063864348,-500.0,0.00025753,2]
[337760622,1726063864358,-505.58879941,0.00025753,2]
[337760623,1726063864367,-500.0,0.00025753,2]
[337760624,1726063864376,-500.0,0.00025753,2]
[337760625,1726063864385,-500.0,0.00025753,2]
[337760626,1726063864396,-500.0,0.00025753,2]
[337760627,1726063864405,-500.0,0.00025753,2]
[337760628,1726063864416,-494.53371765,0.00025753,2]
[337760629,1726063864425,-507.02274091,0.00025753,2]
[337760630,1726063864435,-500.0,0.00025753,2]
[337760631,1726063864444,-500.0,0.00025753,2]
[337760632,1726063864454,-500.0,0.00025753,2]
[337760633,1726063864464,-500.0,0.00025753,2]
[337760634,1726063864474,-500.0,0.00025753,2]
[337760635,1726063864483,-687.16,0.00025753,2]
[337760636,1726063864493,-692.04,0.00025753,2]
[337760637,1726063864503,-533.63,0.00025753,2]
[337760638,1726063864513,-500.0,0.00025753,2]
[337760639,1726063864522,-500.0,0.00025753,2]
[337760640,1726063864533,-500.0,0.00025753,2]
[337760641,1726063864543,-500.0,0.00025753,2]
[337760642,1726063864552,-500.0,0.00025753,2]
[337760643,1726063864562,-500.0,0.00025753,2]
[337760644,1726063864572,-500.0,0.00025753,2]
[337760645,1726063864581,-500.0,0.00025753,2]
[337760646,1726063864595,-403.28140902,0.00025753,2]
[337760647,1726063864605,-500.0,0.00025753,2]
[337760648,1726063864614,-500.0,0.00025753,2]
[337760649,1726063864623,-702.84,0.00025753,2]
[337760650,1726063864632,-1232.06,0.00025753,2]
[337760651,1726063864641,-937.49,0.00025753,2]
[337760652,1726063864649,-500.0,0.00025753,2]
[337760653,1726063864659,-384.22865096,0.00025753,2]
[337760654,1726063864669,-500.0,0.00025753,2]
[337760655,1726063864679,-500.0,0.00025753,2]
[337760656,1726063864689,-500.0,0.00025753,2]
[337760657,1726063864700,-500.0,0.00025753,2]
[337760658,1726063864711,-500.0,0.00025753,2]
[337760659,1726063864725,-500.0,0.00025753,2]
[337760660,1726063864738,-500.0,0.00025753,2]
[337760661,1726063864748,-584.33,0.00025753,2]
[337760662,1726063864757,-500.0,0.00025753,2]
[337760663,1726063864769,-500.0,0.00025753,2]
[337760664,1726063864778,-500.0,0.00025753,2]
[337760665,1726063864787,-500.0,0.00025753,2]
[337760666,1726063864796,-500.0,0.00025753,2]
[337760667,1726063864807,-1514.69,0.00025753,2]
[337760668,1726063864818,-500.0,0.00025753,2]
[337760669,1726063864829,-1388.44,0.00025753,2]
[337760670,1726063864840,-500.0,0.00025753,2]
[337760671,1726063864850,-500.0,0.00025753,2]
[337760672,1726063864859,-1119.16,0.00025753,2]
[337760673,1726063864869,-500.0,0.00025753,2]
[337760674,1726063864878,-500.0,0.00025753,2]
[337760675,1726063864888,-2592.5,0.00025753,2]
[337760676,1726063864897,-500.0,0.00025753,2]
[337760677,1726063864906,-500.0,0.00025753,2]
[337760678,1726063864916,-500.0,0.00025753,2]
[337760679,1726063864926,-702.86,0.00025753,2]
[337760680,1726063864935,-500.0,0.00025753,2]
[337760681,1726063864944,-506.81771678,0.00025753,2]
[337760682,1726063864953,-865.08,0.00025753,2]
[337760683,1726063864962,-327.57052911,0.00025753,2]
[337760684,1726063865664,-820.65,0.00024921,3]
[337760685,1726063865674,-178.35360241,0.00025753,2]
[337760686,1726063865684,-1048.67950559,0.00025753,2]
[337760687,1726063865697,-397.27049441,0.00025753,2]
[337760688,1726063865707,-742.69,0.00025753,2]
[337760689,1726063865718,-532.35,0.00025753,2]
[337760690,1726063865735,-503.20650795,0.00025753,2]
[337760691,1726063865745,-699.52,0.00025753,2]
[337760692,1726063865754,-500.0,0.00025753,2]
[337760693,1726063865763,-963.14,0.00025753,2]
[337760694,1726063865774,-500.0,0.00025753,2]
[337760695,1726063865784,-500.0,0.00025753,2]
[337760696,1726063865793,-260.24776476,0.00025753,2]
[337760698,1726063869553,-239.75223524,0.00025753,2]
[337760699,1726063869565,-500.0,0.00025753,2]
[337760700,1726063869576,-500.0,0.00025753,2]
[337760701,1726063869586,-500.0,0.00025753,2]
[337760702,1726063869596,-500.0,0.00025753,2]
[337760703,1726063869606,-1084.43,0.00025753,2]
[337760704,1726063869616,-500.0,0.00025753,2]
[337760705,1726063869625,-738.99,0.00025753,2]
[337760706,1726063869635,-500.0,0.00025753,2]
[337760707,1726063869644,-240.78059793,0.00025753,2]
[337760708,1726063869654,-500.0,0.00025753,2]
[337760709,1726063869663,-784.58,0.00025753,2]
[337760710,1726063869673,-500.0,0.00025753,2]
[337760711,1726063869682,-500.0,0.00025753,2]
[337760712,1726063869692,-537.7,0.00025753,2]
[337760713,1726063869702,-500.0,0.00025753,2]
[337760714,1726063869711,-500.0,0.00025753,2]
[337760715,1726063869721,-500.0,0.00025753,2]
[337760716,1726063869732,-500.0,0.00025753,2]
[337760717,1726063869746,-500.0,0.00025753,2]
[337760718,1726063869756,-500.0,0.00025753,2]
[337760719,1726063869765,-500.0,0.00025753,2]
[337760720,1726063869775,-500.0,0.00025753,2]
[337760721,1726063869784,-500.0,0.00025753,2]
[337760722,1726063869795,-500.0,0.00025753,2]
[337760723,1726063869804,-500.0,0.00025753,2]
[337760724,1726063869815,-599.55,0.00025753,2]
[337760725,1726063869825,-500.0,0.00025753,2]
[337760726,1726063869835,-500.0,0.00025753,2]
[337760727,1726063869845,-647.06,0.00025753,2]
[337760728,1726063869854,-1593.1,0.00025753,2]
[337760729,1726063869863,-500.0,0.00025753,2]
[337760730,1726063869872,-500.0,0.00025753,2]
[337760731,1726063869881,-500.0,0.00025753,2]
[337760732,1726063869890,-2776.28,0.00025753,2]
[337760733,1726063869899,-500.0,0.00025753,2]
[337760734,1726063869908,-500.0,0.00025753,2]
[337760735,1726063869917,-500.0,0.00025753,2]
[337760736,1726063869926,-1934.88,0.00025753,2]
[337760737,1726063869935,-500.0,0.00025753,2]
[337760738,1726063869945,-1885.66,0.00025753,2]
[337760739,1726063869954,-500.0,0.00025753,2]
[337760740,1726063869963,-500.0,0.00025753,2]
[337760741,1726063869972,-500.0,0.00025753,2]
[337760742,1726063869981,-500.0,0.00025753,2]
[337760743,1726063869990,-500.0,0.00025753,2]
[337760744,1726063870000,-1073.29,0.00025753,2]
[337760745,1726063870307,-1396.04,0.00025753,2]
[337760746,1726063870328,-1065.51,0.00025753,2]
[337760747,1726063870342,-500.0,0.00025753,2]
[337760748,1726063870353,-1182.44,0.00025753,2]
[337760749,1726063870362,-1228.64,0.00025753,2]
[337760750,1726063870372,-400.50542383,0.00025753,2]
[337760752,1726063872315,-996.10457617,0.00025753,2]
[337760753,1726063872324,-500.0,0.00025753,2]
[337760754,1726063872334,-500.0,0.00025753,2]
[337760755,1726063872343,-500.0,0.00025753,2]
[337760756,1726063872355,-510.25168473,0.00025753,2]
[337760757,1726063872364,-422.37026171,0.00025753,2]
[337760758,1726063872374,-728.24,0.00025753,2]
[337760759,1726063872383,-1733.78,0.00025753,2]
[337760760,1726063872393,-500.0,0.00025753,2]
[337760761,1726063872402,-2773.31,0.00025753,2]
[337760762,1726063872412,-500.0,0.00025753,2]
[337760763,1726063872421,-500.0,0.00025753,2]
[337760764,1726063872430,-500.0,0.00025753,2]
[337760765,1726063872440,-2856.69,0.00025753,2]
[337760766,1726063872450,-394.46611139,0.00025753,2]
[337760767,1726063872709,81871.3199,0.00028,120]
[337760781,1726064128581,1000.0,0.00028,120]
[337760843,1726065032022,-166.733073,0.00022508,2]
[337760846,1726065032032,-250.0,0.00022975,2]
[337760848,1726065032042,-300.0,0.00022984,2]
[337760850,1726065032052,-300.0,0.00022984,2]
[337760851,1726065032062,-10795.89383323,0.00022985,2]
[337760852,1726065032075,-826.33753,0.00022985,2]
[337760853,1726065032087,-305.84891193,0.00022985,2]
[337760872,1726065037871,-12971.91972484,0.00022985,2]
[337760874,1726065037881,-177.473983,0.00023114,2]
[337760876,1726065037891,-293.124886,0.00023262,2]
[337760878,1726065037901,-166.462944,0.00023436,2]
[337760879,1726065037911,-166.733073,0.0002353,2]
[337760880,1726065037920,-166.462944,0.00023538,2]
[337760882,1726065037930,-166.462944,0.0002364,2]
[337760884,1726065037940,-166.462944,0.00023741,2]
[337760885,1726065037949,-166.462944,0.00023843,2]
[337760886,1726065037959,-166.462944,0.00023945,2]
[337760887,1726065037969,-166.462944,0.00024047,2]
[337760888,1726065037986,-166.462944,0.00024149,2]
[337760889,1726065037999,-199.27128676,0.000242,2]
[337760890,1726065038012,-199.27128676,0.000242,2]
[337760891,1726065038024,-166.462944,0.0002425,2]
[337760892,1726065038035,-166.462944,0.00024352,2]
[337760893,1726065038044,-166.462944,0.00024454,2]
[337760894,1726065038053,-166.733073,0.00024553,2]
[337760895,1726065038065,-166.462944,0.00024556,2]
[337760896,1726065038076,-2054.09280951,0.00024557,2]
[337760897,1726065038086,-10000.0,0.0002459,2]
[337760898,1726065038095,-742.68,0.00024627,3]
[337760899,1726065038106,-7272.24303587,0.0002463,3]
[337760900,1726065038116,-487.92485667,0.00024636,2]
[337760901,1726065038126,-500.94911414,0.00024636,2]
[337760902,1726065038135,-503.39280059,0.00024636,2]
[337760903,1726065038149,-124129.36292636,0.00024637,3]
[337760922,1726065039958,-251573.7759416,0.00024637,3]
[337761002,1726065042933,-1866.90796104,0.00024637,3]
[337761003,1726065042944,-56152.3979126,0.00024637,3]
[337761004,1726065042953,-31268.28579279,0.00024646,2]
[337761006,1726065042966,-656.56047641,0.00024646,2]
[337761008,1726065042975,-9909.24669045,0.00024647,3]
[337761010,1726065042984,-500.0,0.00024657,2]
[337761012,1726065042994,-500.0,0.00024657,2]
[337761013,1726065043003,-500.0,0.00024657,2]
[337761014,1726065043015,-500.0,0.00024657,2]
[337761015,1726065043025,-500.0,0.00024657,2]
[337761016,1726065043036,-500.0,0.00024657,2]
[337761017,1726065043045,-500.0,0.00024657,2]
[337761018,1726065043055,-500.0,0.00024657,2]
[337761019,1726065043069,-547.87,0.00024657,2]
[337761020,1726065043078,-500.0,0.00024657,2]
[337761021,1726065043087,-500.0,0.00024657,2]
[337761022,1726065043097,-574.82635593,0.00024657,2]
[337761023,1726065043106,-500.0,0.00024657,2]
[337761024,1726065043117,-500.0,0.00024657,2]
[337761025,1726065043126,-670.56,0.00024657,2]
[337761026,1726065043135,-556.42,0.00024657,2]
[337761027,1726065043146,-500.0,0.00024657,2]
[337761028,1726065043156,-358.41853709,0.00024657,2]
[337761029,1726065043165,-500.0,0.00024657,2]
[337761030,1726065043174,-684.86,0.00024657,2]
[337761031,1726065043183,-585.03,0.00024657,2]
[337761032,1726065043193,-500.0,0.00024657,2]
[337761033,1726065043202,-504.17353419,0.00024657,2]
[337761034,1726065043211,-500.0,0.00024657,2]
[337761035,1726065043220,-858.51,0.00024657,2]
[337761036,1726065043232,-500.0,0.00024657,2]
[337761037,1726065043241,-500.0,0.00024657,2]
[337761038,1726065043251,-500.0,0.00024657,2]
[337761039,1726065043262,-500.0,0.00024657,2]
[337761040,1726065043271,-500.0,0.00024657,2]
[337761041,1726065043281,-500.0,0.00024657,2]
[337761042,1726065043291,-500.0,0.00024657,2]
[337761043,1726065043300,-500.0,0.00024657,2]
[337761044,1726065043309,-500.0,0.00024657,2]
[337761045,1726065043318,-500.0,0.00024657,2]
[337761046,1726065043328,-612.55127634,0.00024657,2]
[337761047,1726065043337,-500.0,0.00024657,2]
[337761048,1726065043346,-500.0,0.00024657,2]
[337761049,1726065043356,-500.0,0.00024657,2]
[337761050,1726065043365,-742.18,0.00024657,2]
[337761051,1726065043376,-505.30196381,0.00024657,2]
[337761052,1726065043386,-1105.2,0.00024657,2]
[337761053,1726065043395,-500.0,0.00024657,2]
[337761054,1726065043405,-849.69,0.00024657,2]
[337761055,1726065043414,-500.0,0.00024657,2]
[337761056,1726065043424,-500.0,0.00024657,2]
[337761057,1726065043434,-500.0,0.00024657,2]
[337761058,1726065043443,-500.0,0.00024657,2]
[337761059,1726065043452,-576.53,0.00024657,2]
[337761060,1726065043462,-500.0,0.00024657,2]